bitfinex/quotes_BTCUSD_20250219
["timestamp","ask_amount","ask_price","bid_price","bid_amount"]
[1739929539559,0.00086298,95630.0,95625.0,0.082]
[1739929541734,0.05808542,95640.0,95625.0,0.082]
[1739929541892,0.05821677,95640.0,95625.0,0.082]
[1739929543970,0.00805076,95632.0,95625.0,0.082]
[1739929545540,0.00805076,95632.0,95619.0,0.0487]
[1739929552231,0.00805076,95632.0,95620.0,0.02]
[1739929561945,0.01639646,95630.0,95620.0,0.02]
[1739929563386,0.00805076,95632.0,95620.0,0.02]
[1739929565969,0.00805076,95632.0,95619.0,0.0487]
[1739929566174,0.15,95628.0,95619.0,0.0487]
[1739929566380,0.15,95628.0,95620.0,0.0008492]
[1739929567047,0.15,95628.0,95621.0,0.08]
[1739929567485,0.01639644,95630.0,95621.0,0.08]
[1739929568659,0.16639644,95630.0,95623.0,0.0788]
[1739929568864,0.01639644,95630.0,95623.0,0.0788]
[1739929569060,0.16639644,95630.0,95623.0,0.0788]
[1739929570326,0.01639644,95630.0,95623.0,0.0788]
[1739929573105,0.15805076,95632.0,95623.0,0.0788]
[1739929573632,0.00805076,95632.0,95623.0,0.0788]
[1739929576168,0.01639589,95630.0,95623.0,0.0788]
[1739929578078,0.01639589,95630.0,95629.0,0.102]
[1739929578228,0.01639589,95630.0,95629.0,0.1474]
[1739929579124,0.00055595,95640.0,95639.0,0.02]
[1739929579407,0.00055595,95640.0,95639.0,0.23114464]
[1739929581264,0.01639279,95661.0,95648.0,0.02]
[1739929581464,0.01639279,95661.0,95648.0,0.1467]
[1739929581687,0.04226159,95654.0,95648.0,0.1467]
[1739929582850,0.01679053,95649.0,95648.0,0.1527]
[1739929583177,0.0004,95649.0,95648.0,0.1327]
[1739929583382,0.0004,95649.0,95648.0,0.006]
[1739929583936,0.00818788,95649.0,95635.0,0.0465]
[1739929584081,0.15,95644.0,95622.0,0.1439]
[1739929584283,0.15,95629.0,95615.0,0.02]
[1739929584544,0.15,95629.0,95614.0,0.0774]
[1739929584745,0.15,95629.0,95611.0,0.02]
[1739929585156,0.00789798,95623.0,95611.0,0.02]
[1739929586215,0.02429527,95623.0,95611.0,0.02]
[1739929587949,0.02529527,95623.0,95611.0,0.02]
[1739929594187,0.04121036,95630.0,95611.0,0.02]
[1739929594416,0.578189,95629.0,95611.0,0.02]
[1739929594612,0.001,95623.0,95611.0,0.02]
[1739929594813,0.00799735,95621.0,95611.0,0.02]
[1739929595194,0.00799735,95621.0,95609.0,0.0774]
[1739929598500,0.00999735,95621.0,95609.0,0.0774]
[1739929599096,0.02639488,95621.0,95609.0,0.0774]
[1739929601032,0.02639488,95621.0,95620.0,0.0120242]
[1739929601762,0.02439488,95621.0,95620.0,0.0120242]
[1739929602032,0.02639488,95621.0,95620.0,0.0120242]
[1739929602501,0.00999735,95621.0,95620.0,0.0120242]
[1739929603688,0.00799735,95621.0,95620.0,0.0120242]
[1739929603848,0.00999735,95621.0,95620.0,0.0120242]
[1739929606580,0.00799735,95621.0,95620.0,0.0120242]
[1739929607170,0.02639476,95621.0,95620.0,0.0120242]
[1739929608104,0.02439476,95621.0,95620.0,0.0120242]
[1739929608526,0.00070856,95630.0,95620.0,0.0120242]
[1739929608736,0.01639737,95621.0,95620.0,0.0120242]
[1739929610723,0.02445186,95621.0,95620.0,0.0120242]
[1739929612898,0.10310385,95630.0,95620.0,0.0120242]
[1739929613129,0.471853,95629.0,95620.0,0.0120242]
[1739929613329,0.01639772,95621.0,95620.0,0.0120242]
[1739929614861,0.01739772,95621.0,95620.0,0.0120242]
[1739929615724,0.02542311,95621.0,95620.0,0.0120242]
[1739929617243,0.00902539,95621.0,95620.0,0.0120242]
[1739929620222,0.02542256,95621.0,95620.0,0.0120242]
[1739929621777,0.01578256,95621.0,95620.0,0.0120242]
[1739929623364,0.01578256,95621.0,95603.0,0.08374464]
[1739929623365,0.15,95618.0,95602.0,0.05432718]
[1739929623581,0.15,95602.0,95585.0,0.02]
[1739929623783,0.15,95602.0,95577.0,0.08459444]
[1739929623784,0.15,95594.0,95577.0,0.08459444]
[1739929624005,0.15,95587.0,95577.0,0.08459444]
[1739929624665,0.15008229,95587.0,95577.0,0.08459444]
[1739929624869,0.00772485,95583.0,95577.0,0.08459444]
[1739929625075,0.00772485,95583.0,95577.0,0.10459444]
[1739929626411,0.15008229,95587.0,95580.0,0.02]
[1739929626589,0.18530092,95587.0,95584.0,0.02]
[1739929626943,0.03530092,95587.0,95584.0,0.02]
[1739929627530,0.05170262,95587.0,95584.0,0.02]
[1739929627730,0.05170262,95587.0,95584.0,0.022]
[1739929628316,0.05170262,95587.0,95584.0,0.02]
[1739929628909,0.05170262,95587.0,95580.0,0.02]
[1739929629550,0.05170262,95587.0,95584.0,0.001]
[1739929629755,0.05170262,95587.0,95579.0,0.0832]
[1739929630613,0.05170262,95587.0,95584.0,0.001]
[1739929630835,0.05170262,95587.0,95579.0,0.0832]
[1739929631255,0.05170262,95587.0,95579.0,0.0862]
[1739929632413,0.05170262,95587.0,95579.0,0.0832]
[1739929632619,0.05170262,95587.0,95584.0,0.003]
[1739929633026,0.05170262,95587.0,95579.0,0.0832]
[1739929633027,0.03530092,95587.0,95579.0,0.0832]
[1739929633304,0.03530092,95587.0,95579.0,0.0862]
[1739929633525,0.03530092,95587.0,95579.0,0.0832]
[1739929633944,0.03530092,95587.0,95584.0,0.003]
[1739929634152,0.03530092,95587.0,95579.0,0.0832]
[1739929635703,0.03530092,95587.0,95579.0,0.0862]
[1739929636321,0.0164012,95586.0,95579.0,0.0862]
[1739929637394,0.04768095,95586.0,95579.0,0.0832]
[1739929637590,0.0164012,95586.0,95579.0,0.0832]
[1739929638212,0.0164012,95586.0,95579.0,0.084051]
[1739929638431,0.0164012,95586.0,95584.0,0.02]
[1739929638611,0.0164012,95586.0,95585.0,0.0997]
[1739929638814,0.0164012,95586.0,95585.0,0.1451]
[1739929640033,0.0164012,95586.0,95585.0,0.1511]
[1739929645854,0.03530092,95587.0,95585.0,0.1511]
[1739929646735,0.03530092,95587.0,95585.0,0.1451]
[1739929646939,0.03530092,95587.0,95586.0,0.02]
[1739929648843,0.05170093,95587.0,95586.0,0.02]
[1739929649039,0.05170093,95587.0,95586.0,0.025]
[1739929651722,0.05170093,95587.0,95586.0,0.2602721]
[1739929651884,0.0164823,95587.0,95586.0,0.57083308]
[1739929652290,8.229e-05,95587.0,95586.0,0.41390708]
[1739929653126,0.13847976,95610.0,95587.0,0.0773]
[1739929653332,0.13856215,95610.0,95596.0,0.0773]
[1739929655053,0.14624759,95610.0,95598.0,0.02]
[1739929655276,0.01639867,95607.0,95601.0,0.02]
[1739929656418,0.01639867,95607.0,95598.0,0.02]
[1739929656623,0.01639867,95607.0,95597.0,0.02]
[1739929656830,0.01739867,95607.0,95594.0,0.02]
[1739929657052,0.10324685,95604.0,95594.0,0.02]
[1739929657524,0.10324685,95604.0,95591.0,0.02]
[1739929658349,0.13817873,95604.0,95591.0,0.02]
[1739929658549,0.10324685,95604.0,95591.0,0.02]
[1739929659686,0.01639867,95607.0,95595.0,0.02]
[1739929659927,0.01639867,95607.0,95597.0,0.02]
[1739929661362,0.01639867,95607.0,95590.0,0.02]
[1739929661568,0.10324685,95600.0,95590.0,0.02]
[1739929661764,0.10324685,95600.0,95589.0,0.0975]
[1739929661998,0.10324685,95600.0,95590.0,0.02]
[1739929662201,0.10324685,95600.0,95589.0,0.0775]
[1739929662202,0.10324685,95600.0,95591.0,0.02]
[1739929662819,0.01639867,95607.0,95591.0,0.02]
[1739929663362,0.15,95609.0,95591.0,0.02]
[1739929664842,0.15,95609.0,95591.0,0.021]
[1739929665042,0.15,95609.0,95591.0,0.02]
[1739929665557,0.152,95609.0,95591.0,0.02]
[1739929665889,0.06021631,95610.0,95591.0,0.02]
[1739929666310,0.0163994,95605.0,95591.0,0.02]
[1739929666515,0.00784212,95598.0,95589.0,0.0775]
[1739929666729,0.00784212,95598.0,95587.0,0.08374464]
[1739929666928,0.00784212,95598.0,95587.0,0.10374464]
[1739929667156,0.00784212,95598.0,95587.0,0.08374464]
[1739929667558,0.00784212,95598.0,95586.0,0.000851]
[1739929667758,0.02059096,95598.0,95586.0,0.000851]
[1739929668269,0.00784212,95598.0,95586.0,0.000851]
[1739929668823,0.00784212,95598.0,95587.0,0.002]
[1739929669027,0.02068156,95595.0,95587.0,0.002]
[1739929669440,0.02068156,95595.0,95586.0,0.000851]
[1739929669832,0.01640223,95594.0,95586.0,0.000851]
[1739929672293,0.15,95592.0,95586.0,0.000851]
[1739929672595,0.15,95590.0,95586.0,0.000851]
[1739929672812,0.15,95588.0,95586.0,0.000851]
[1739929673841,0.0742,95591.0,95586.0,0.000851]
[1739929674021,0.15,95589.0,95586.0,0.000851]
[1739929674637,0.15,95587.0,95586.0,0.000851]
[1739929674839,3.333555,95587.0,95586.0,0.000851]
[1739929675039,2.691978,95587.0,95586.0,0.000851]
[1739929675181,1.989961,95587.0,95586.0,0.000851]
[1739929675626,2.05936455,95587.0,95586.0,0.000851]
[1739929675802,1.989961,95587.0,95586.0,0.000851]
[1739929676532,1.992961,95587.0,95586.0,0.001851]
[1739929678276,2.00936504,95587.0,95586.0,0.001851]
[1739929679336,2.00636504,95587.0,95586.0,0.000851]
[1739929679680,2.01236504,95587.0,95586.0,0.001851]
[1739929680062,1.71308139,95587.0,95586.0,0.001851]
[1739929681100,1.78639204,95587.0,95586.0,0.000851]
[1739929681302,1.79239204,95587.0,95586.0,0.001851]
[1739929681436,1.79239204,95587.0,95586.0,0.000851]
[1739929681790,1.79839204,95587.0,95586.0,0.001851]
[1739929682111,1.94239204,95587.0,95586.0,0.000851]
[1739929682445,1.96642022,95587.0,95586.0,0.001851]
[1739929682674,1.96642022,95587.0,95579.0,0.000851]
[1739929682675,0.15,95586.0,95579.0,0.00015021]
[1739929682882,0.0495,95585.0,95579.0,0.00015021]
[1739929683086,0.15,95583.0,95577.0,0.00070079]
[1739929683432,0.15,95581.0,95577.0,0.00070079]
[1739929683618,0.15,95579.0,95577.0,0.00070079]
[1739929683822,2.683686,95578.0,95577.0,0.00070079]
[1739929683993,2.467843,95578.0,95577.0,0.00070079]
[1739929684415,2.490843,95578.0,95577.0,0.00070079]
[1739929684592,2.490843,95578.0,95550.0,0.0461]
[1739929684593,0.15,95577.0,95550.0,0.0461]
[1739929684803,0.15,95577.0,95556.0,0.08418272]
[1739929684804,0.15,95565.0,95556.0,0.08418272]
[1739929685114,0.15,95563.0,95556.0,0.08418272]
[1739929685965,0.15,95563.0,95556.0,0.08518272]
[1739929686115,0.15,95565.0,95556.0,0.08418272]
[1739929686364,0.01640761,95562.0,95556.0,0.08418272]
[1739929689735,0.00790897,95557.0,95556.0,0.08418272]
[1739929698254,0.00790897,95557.0,95556.0,0.08503412]
[1739929699397,0.02431657,95557.0,95556.0,0.08503412]
[1739929701331,0.03040147,95566.0,95556.0,0.08503412]
[1739929701539,0.01640795,95557.0,95556.0,0.08503412]
[1739929703120,0.020668,95561.0,95556.0,0.08503412]
[1739929704493,0.00792209,95557.0,95556.0,0.08503412]
[1739929707633,0.02432964,95557.0,95556.0,0.08503412]
[1739929713153,0.00792209,95557.0,95556.0,0.08503412]
[1739929716181,0.02432961,95557.0,95556.0,0.08503412]
[1739929717559,0.02432961,95557.0,95556.0,0.23173412]
[1739929717560,0.01640752,95557.0,95556.0,0.23173412]
[1739929718469,0.01640752,95557.0,95556.0,0.21173412]
[1739929719405,0.01740752,95557.0,95556.0,0.21173412]
[1739929719608,0.01640752,95557.0,95556.0,0.21173412]
[1739929723085,0.15,95565.0,95556.0,0.21173412]
[1739929725284,0.151,95565.0,95556.0,0.21173412]
[1739929725567,0.15,95565.0,95556.0,0.21173412]
[1739929725811,0.15,95563.0,95544.0,0.0458]
[1739929726018,0.15,95555.0,95542.0,0.00093259]
[1739929726229,0.15,95551.0,95542.0,0.00093259]
[1739929726438,0.15,95549.0,95542.0,0.00093259]
[1739929727574,0.01640918,95548.0,95542.0,0.00093259]
[1739929728180,0.04321359,95548.0,95542.0,0.00093259]
[1739929728780,0.04321359,95548.0,95543.0,0.0769]
[1739929731199,0.04321359,95548.0,95544.0,0.08374464]
[1739929731408,0.04321359,95548.0,95545.0,0.0454]
[1739929734305,0.04363909,95548.0,95545.0,0.0454]
[1739929735316,0.02722991,95548.0,95545.0,0.0454]
[1739929738353,0.04363894,95548.0,95545.0,0.0454]
[1739929739963,0.04363894,95548.0,95542.0,0.00093259]
[1739929741222,0.04363894,95548.0,95528.0,0.0789]
[1739929741433,0.15,95544.0,95533.0,0.08387609]
[1739929741671,0.15,95542.0,95533.0,0.08387609]
[1739929742007,0.15,95540.0,95533.0,0.00013145]
[1739929742186,0.15,95538.0,95533.0,0.00013145]
[1739929742983,0.01641177,95537.0,95533.0,0.00013145]
[1739929743234,0.00794975,95536.0,95533.0,0.00013145]
[1739929744197,0.00794975,95536.0,95535.0,0.0787]
[1739929744404,0.10338405,95545.0,95536.0,0.02]
[1739929744608,0.15,95544.0,95537.0,0.0497]
[1739929744816,0.15,95544.0,95538.0,0.0788]
[1739929745028,0.15,95544.0,95541.0,0.02]
[1739929745232,0.15,95544.0,95543.0,0.02]
[1739929745646,0.02722991,95548.0,95543.0,0.02]
[1739929745846,0.02722991,95548.0,95547.0,0.08374464]
[1739929750218,0.0004255,95548.0,95547.0,0.23054464]
[1739929750802,0.02732376,95548.0,95547.0,0.23054464]
[1739929751364,0.02832376,95548.0,95547.0,0.23054464]
[1739929755377,0.02832376,95548.0,95547.0,0.21054464]
[1739929755530,0.02832376,95548.0,95547.0,0.045]
[1739929756336,0.04473348,95548.0,95544.0,0.02]
[1739929756522,0.04373348,95548.0,95544.0,0.02]
[1739929760559,0.04373348,95548.0,95534.0,0.22814464]
[1739929760748,0.15,95543.0,95534.0,0.13174464]
[1739929761066,0.15,95543.0,95534.0,0.08374464]
[1739929765572,0.151,95543.0,95534.0,0.08374464]
[1739929766189,0.01641086,95541.0,95537.0,0.02]
[1739929770264,0.07159703,95550.0,95537.0,0.02]
[1739929770693,0.09887066,95550.0,95537.0,0.02]
[1739929770903,0.01641045,95541.0,95537.0,0.02]
[1739929773057,0.01641045,95541.0,95539.0,0.02]
[1739929774970,0.0004255,95548.0,95539.0,0.02]
[1739929776083,0.0004255,95548.0,95539.0,0.022]
[1739929776287,0.0004255,95548.0,95539.0,0.02]
[1739929781543,0.01640958,95546.0,95539.0,0.02]
[1739929783759,0.0004255,95548.0,95539.0,0.02]
[1739929784170,0.0004255,95548.0,95539.0,0.021]
[1739929784851,0.0004255,95548.0,95539.0,0.02]
[1739929786932,0.01641022,95546.0,95539.0,0.02]
[1739929788264,0.01641022,95546.0,95539.0,0.021]
[1739929790411,0.02071686,95552.0,95539.0,0.021]
[1739929790622,0.06783948,95549.0,95539.0,0.021]
[1739929790837,0.01641025,95545.0,95539.0,0.021]
[1739929791239,0.01641025,95545.0,95541.0,0.0484]
[1739929791443,0.01641025,95545.0,95541.0,0.0684]
[1739929791650,0.01641025,95545.0,95544.0,0.02]
[1739929791859,0.01641025,95545.0,95544.0,0.10374464]
[1739929792637,0.01641025,95545.0,95544.0,0.02]
[1739929793041,0.06783948,95554.0,95544.0,0.02]
[1739929794168,0.06783948,95554.0,95544.0,0.002]
[1739929794341,0.06783948,95554.0,95543.0,0.02]
[1739929794812,0.06783948,95554.0,95544.0,0.002]
[1739929795140,0.00775258,95550.0,95544.0,0.002]
[1739929795347,0.00775258,95550.0,95545.0,0.02]
[1739929795569,0.00775258,95550.0,95544.0,0.002]
[1739929795773,0.00775258,95550.0,95545.0,0.02]
[1739929795970,0.00775258,95550.0,95544.0,0.002]
[1739929795971,0.00775258,95550.0,95548.0,0.02]
[1739929796173,0.00817808,95550.0,95548.0,0.02]
[1739929797106,0.00817808,95550.0,95548.0,0.022]
[1739929797528,0.02458709,95550.0,95548.0,0.022]
[1739929803250,0.00817808,95550.0,95548.0,0.022]
[1739929804458,0.00817808,95550.0,95548.0,0.02]
[1739929805203,0.00817808,95550.0,95549.0,0.08374464]
[1739929805514,0.00817808,95550.0,95549.0,0.16274464]
[1739929806216,0.02458677,95550.0,95549.0,0.16274464]
[1739929807166,0.02458677,95550.0,95549.0,0.16474464]
[1739929808554,0.01683419,95550.0,95549.0,0.16474464]
[1739929809856,0.01683419,95550.0,95549.0,0.18474464]
[1739929810809,0.01683419,95550.0,95549.0,0.23124464]
[1739929812105,0.01683419,95550.0,95549.0,0.22924464]
[1739929812311,0.01683419,95550.0,95549.0,0.23324464]
[1739929813161,0.01683419,95550.0,95549.0,0.22924464]
[1739929813534,0.01783419,95550.0,95549.0,0.23424464]
[1739929814084,0.0014255,95550.0,95549.0,0.23424464]
[1739929817081,0.01783295,95550.0,95549.0,0.23424464]
[1739929819303,0.01783295,95550.0,95549.0,0.22460464]
[1739929823584,0.0014255,95550.0,95549.0,0.22460464]
[1739929827895,0.01783231,95550.0,95549.0,0.22460464]
[1739929830364,0.01783231,95550.0,95549.0,0.38159164]
[1739929830574,0.01783231,95550.0,95549.0,0.22460464]
[1739929830778,0.01683231,95550.0,95549.0,0.21960464]
[1739929831191,0.01683231,95550.0,95549.0,0.22360464]
[1739929831419,0.01683231,95550.0,95549.0,0.21960464]
[1739929831632,0.01783231,95550.0,95549.0,0.22460464]
[1739929832036,0.01783231,95550.0,95549.0,0.22545564]
[1739929833087,0.01783231,95550.0,95549.0,0.072351]
[1739929833295,0.0014255,95550.0,95549.0,0.005851]
[1739929833866,0.0014255,95550.0,95549.0,0.000851]
[1739929833867,0.0004255,95550.0,95549.0,0.000851]
[1739929834067,0.0004255,95550.0,95549.0,0.020851]
[1739929834271,0.0004255,95550.0,95549.0,0.024851]
[1739929834471,0.0004255,95550.0,95549.0,0.020851]
[1739929834793,0.0004255,95550.0,95549.0,0.024851]
[1739929835173,0.0004255,95550.0,95549.0,0.020851]
[1739929835365,0.0004255,95550.0,95549.0,0.023851]
[1739929835935,0.0004255,95550.0,95549.0,0.020851]
[1739929837270,0.0004255,95550.0,95549.0,0.022851]
[1739929837441,0.0004255,95550.0,95549.0,0.020851]
[1739929837672,0.01683424,95550.0,95549.0,0.020851]
[1739929837846,0.01683424,95550.0,95549.0,0.022851]
[1739929841929,0.01683424,95550.0,95549.0,0.020851]
[1739929842336,0.01683424,95550.0,95549.0,0.023851]
[1739929845693,0.0004255,95550.0,95549.0,0.023851]
[1739929849753,0.0004255,95550.0,95549.0,0.020851]
[1739929850138,0.01683478,95550.0,95549.0,0.022851]
[1739929850314,0.01683478,95550.0,95549.0,0.020851]
[1739929850728,0.01683478,95550.0,95549.0,0.022851]
[1739929853007,0.01683478,95550.0,95549.0,0.020851]
[1739929853216,0.01683478,95550.0,95549.0,0.022851]
[1739929853422,0.01683478,95550.0,95549.0,0.002851]
[1739929853801,0.0004255,95550.0,95549.0,0.002851]
[1739929854216,0.0004255,95550.0,95549.0,0.022851]
[1739929854547,0.0004255,95550.0,95549.0,0.020851]
[1739929854721,0.0004255,95550.0,95549.0,0.022851]
[1739929855369,0.0004255,95550.0,95549.0,0.07339746]
[1739929855541,0.0004255,95550.0,95549.0,0.23038446]
[1739929855718,0.0004255,95550.0,95549.0,0.57324508]
[1739929856820,0.0004255,95550.0,95549.0,0.57124508]
[1739929857051,0.0004255,95550.0,95549.0,0.57324508]
[1739929857259,0.0004255,95550.0,95549.0,0.57124508]
[1739929857657,0.0014255,95550.0,95549.0,0.57624508]
[1739929857926,0.0004255,95550.0,95549.0,0.57124508]
[1739929858208,0.0014255,95550.0,95549.0,0.57624508]
[1739929859190,0.01783272,95550.0,95549.0,0.57624508]
[1739929860716,0.01783272,95550.0,95549.0,0.59924508]
[1739929861575,0.01783272,95550.0,95549.0,0.70174873]
[1739929862768,0.01783272,95550.0,95549.0,0.72134067]
[1739929863227,0.0014255,95550.0,95549.0,0.72134067]
[1739929863637,0.0004255,95550.0,95549.0,0.71634067]
[1739929863843,0.0014255,95550.0,95549.0,0.72334067]
[1739929864206,0.0014255,95550.0,95549.0,1.28204067]
[1739929864379,0.0004255,95560.0,95559.0,0.02]
[1739929864597,0.0004255,95560.0,95559.0,1.24302777]
[1739929864807,0.0004255,95560.0,95559.0,1.24198173]
[1739929865218,0.0004255,95560.0,95559.0,1.26157367]
[1739929866254,0.0004255,95560.0,95559.0,1.30157367]
[1739929866594,0.01640329,95600.0,95565.0,0.325661]
[1739929866794,0.01640329,95600.0,95565.0,0.45116465]
[1739929867194,0.0004255,95610.0,95565.0,0.45116465]
[1739929867546,0.0004255,95610.0,95565.0,0.47116465]
[1739929867761,0.01682636,95566.0,95565.0,0.47116465]
[1739929868109,0.01682636,95566.0,95565.0,0.49088804]
[1739929869110,0.01682636,95566.0,95565.0,0.53172529]
[1739929869545,0.01682636,95566.0,95565.0,0.53872529]
[1739929869767,0.01682636,95566.0,95565.0,0.53172529]
[1739929869977,0.01682636,95566.0,95565.0,0.53872529]
[1739929870403,0.01682636,95566.0,95565.0,0.53172529]
[1739929870825,0.01682636,95566.0,95565.0,0.53872529]
[1739929871048,0.01682636,95566.0,95565.0,0.53172529]
[1739929871254,0.01682636,95566.0,95565.0,0.53872529]
[1739929871692,0.01682636,95566.0,95565.0,1.35033237]
[1739929873288,0.0004257,95566.0,95565.0,1.34333237]
[1739929873497,0.0004257,95566.0,95565.0,1.35033237]
[1739929873919,0.0004257,95566.0,95565.0,1.34333237]
[1739929874132,0.0004257,95566.0,95565.0,1.37125815]
[1739929876387,0.01682524,95566.0,95565.0,1.37125815]
[1739929877800,0.01682524,95566.0,95565.0,1.36425815]
[1739929878369,0.01682524,95566.0,95565.0,1.37125815]
[1739929879745,0.15,95629.0,95610.0,0.02]
[1739929880166,0.15,95619.0,95610.0,0.02]
[1739929880368,0.17431385,95619.0,95610.0,0.02]
[1739929880601,0.10320901,95620.0,95610.0,0.02]
[1739929881037,0.10364704,95620.0,95610.0,0.02]
[1739929882188,0.00043803,95620.0,95614.0,0.02]
[1739929882421,0.00043803,95620.0,95615.0,0.02]
[1739929882824,0.15043803,95620.0,95615.0,0.02]
[1739929883852,0.00043803,95620.0,95615.0,0.02]
[1739929884077,0.15043803,95620.0,95615.0,0.02]
[1739929884918,0.15043803,95620.0,95615.0,0.021]
[1739929885126,0.15043803,95620.0,95615.0,0.02]
[1739929885554,0.016398,95619.0,95615.0,0.02]
[1739929885769,0.15043803,95620.0,95615.0,0.02]
[1739929886213,0.15043803,95620.0,95610.0,0.02]
[1739929886426,0.0766,95619.0,95610.0,0.02]
[1739929886882,0.0766,95619.0,95611.0,0.02]
[1739929888216,0.0766,95619.0,95602.0,0.02]
[1739929888421,0.0766,95619.0,95593.0,0.02]
[1739929888422,0.0766,95616.0,95593.0,0.02]
[1739929888635,0.0766,95599.0,95593.0,0.02]
[1739929888847,0.0766,95599.0,95579.0,0.26590708]
[1739929889079,0.0766,95599.0,95594.0,0.02]
[1739929889296,0.0766,95599.0,95579.0,0.26590708]
[1739929889297,0.0766,95599.0,95598.0,0.02]
[1739929889905,0.0930003,95599.0,95598.0,0.02]
[1739929890537,0.0164003,95599.0,95598.0,0.02]
[1739929890947,0.0164003,95599.0,95598.0,0.022]
[1739929892616,0.0168257,95599.0,95598.0,0.002]
[1739929892801,0.0004254,95599.0,95598.0,0.002]
[1739929893216,0.0004254,95599.0,95598.0,0.022]
[1739929893884,0.0004254,95599.0,95579.0,0.26590708]
[1739929894056,0.1504254,95599.0,95587.0,0.02]
[1739929894262,0.15,95596.0,95589.0,0.02]
[1739929894642,0.145,95596.0,95589.0,0.02]
[1739929895401,0.0004254,95599.0,95589.0,0.02]
[1739929895632,0.0004254,95599.0,95597.0,0.02]
[1739929896305,0.00810286,95599.0,95597.0,0.02]
[1739929896486,0.0004254,95599.0,95598.0,0.02]
[1739929896904,0.01682541,95599.0,95598.0,0.02]
[1739929903087,0.0004254,95599.0,95598.0,0.02]
[1739929903300,0.0004254,95599.0,95598.0,0.023]
[1739929903716,0.0004254,95599.0,95598.0,0.02]
[1739929903929,0.0004254,95599.0,95598.0,0.023]
[1739929904511,0.0004254,95599.0,95598.0,0.0238504]
[1739929906250,0.01682528,95599.0,95598.0,0.0238504]
[1739929906775,0.06774453,95610.0,95598.0,0.0238504]
[1739929907011,0.01639974,95599.0,95598.0,0.0238504]
[1739929907893,0.01639974,95599.0,95598.0,0.0208504]
[1739929908608,0.01639974,95599.0,95598.0,0.0238504]
[1739929909866,0.01639974,95599.0,95598.0,0.0208504]
[1739929910288,0.01639974,95599.0,95598.0,0.0238504]
[1739929910666,0.01639974,95599.0,95598.0,0.0208504]
[1739929910872,0.01639974,95599.0,95598.0,0.0238504]
[1739929911064,0.02106905,95617.0,95598.0,0.0238504]
[1739929911263,0.01639999,95599.0,95598.0,0.0208504]
[1739929911466,0.01639999,95599.0,95598.0,0.0238504]
[1739929911763,0.00779278,95606.0,95598.0,0.0208504]
[1739929911971,0.01639999,95599.0,95598.0,0.0208504]
[1739929913163,0.00779278,95606.0,95598.0,0.0208504]
[1739929913785,0.00779278,95606.0,95598.0,0.0238504]
[1739929914642,0.00779278,95606.0,95598.0,0.0208504]
[1739929914847,0.08415373,95605.0,95598.0,0.0008504]
[1739929915059,0.08415373,95605.0,95598.0,0.0018504]
[1739929915213,0.08415373,95605.0,95598.0,0.0008504]
[1739929915623,0.0766,95605.0,95598.0,0.0018504]
[1739929916833,0.0766,95605.0,95598.0,0.0008504]
[1739929917243,0.0776,95605.0,95598.0,0.0008504]
[1739929917441,0.01640101,95604.0,95598.0,0.0008504]
[1739929917826,0.01640101,95604.0,95598.0,0.0208504]
[1739929919948,0.01640101,95604.0,95598.0,0.0008504]
[1739929920139,0.01640101,95604.0,95598.0,0.0208504]
[1739929920587,0.01640101,95604.0,95598.0,0.0008504]
[1739929920994,0.01640101,95604.0,95598.0,0.0208504]
[1739929923266,0.06774453,95610.0,95598.0,0.0208504]
[1739929924532,0.06774453,95608.0,95598.0,0.0008504]
[1739929925545,0.00805726,95609.0,95598.0,0.0008504]
[1739929925720,0.001,95608.0,95598.0,0.0008504]
[1739929926696,0.01640074,95606.0,95598.0,0.0008504]
[1739929927915,0.01740074,95606.0,95598.0,0.0008504]
[1739929931856,0.001,95606.0,95598.0,0.0008504]
[1739929932499,0.15,95604.0,95598.0,0.0008504]
[1739929932905,0.06774453,95592.0,95582.0,0.0807]
[1739929933734,0.06774453,95592.0,95581.0,0.0455]
[1739929934355,0.21774453,95591.0,95574.0,0.02]
[1739929934585,0.15,95583.0,95570.0,0.1241]
[1739929934795,0.06774453,95578.0,95570.0,0.1241]
[1739929935465,0.00774949,95576.0,95570.0,0.047]
[1739929935673,0.00774949,95576.0,95562.0,0.0753]
[1739929935877,0.00774949,95576.0,95570.0,0.00013145]
[1739929936766,0.00774949,95576.0,95570.0,0.00213145]
[1739929937209,0.00774949,95576.0,95570.0,0.00013145]
[1739929938211,0.00774949,95576.0,95571.0,0.0773]
[1739929941864,0.01640527,95575.0,95570.0,0.00098205]
[1739929942941,0.04194575,95579.0,95570.0,0.00098205]
[1739929943233,0.01640571,95574.0,95570.0,0.00098205]
[1739929943404,0.10332475,95580.0,95570.0,0.00098205]
[1739929944257,0.14559014,95580.0,95570.0,0.00098205]
[1739929944591,0.14759014,95580.0,95570.0,0.00098205]
[1739929946355,0.01640544,95578.0,95570.0,0.00098205]
[1739929946559,0.0079006,95571.0,95570.0,0.00098205]
[1739929946898,0.01640544,95578.0,95570.0,0.00098205]
[1739929947601,0.01640544,95578.0,95574.0,0.02]
[1739929947802,0.01640544,95578.0,95575.0,0.083]
[1739929948384,0.01640544,95578.0,95575.0,0.103]
[1739929950359,0.01640544,95578.0,95577.0,0.02]
[1739929952696,0.01640544,95578.0,95577.0,0.021]
[1739929953116,0.01640544,95578.0,95577.0,0.1492]
[1739929953325,0.04226539,95580.0,95577.0,0.1492]
[1739929953734,0.15,95599.0,95577.0,0.1492]
[1739929953947,0.15,95599.0,95581.0,0.08374464]
[1739929954154,0.15,95590.0,95581.0,0.08374464]
[1739929954369,0.15,95590.0,95584.0,0.02]
[1739929954663,0.15,95590.0,95585.0,0.0794]
[1739929955298,0.04386407,95598.0,95586.0,0.0472]
[1739929956363,0.01640158,95596.0,95586.0,0.0472]
[1739929957529,0.02830808,95596.0,95586.0,0.0472]
[1739929958165,0.02040158,95596.0,95588.0,0.02]
[1739929958377,0.02040158,95596.0,95590.0,0.0772]
[1739929958900,0.01640158,95596.0,95590.0,0.0772]
[1739929959248,0.01840158,95596.0,95593.0,0.08374464]
[1739929959467,0.01640158,95596.0,95593.0,0.08374464]
[1739929959732,0.01740158,95596.0,95593.0,0.08374464]